fUST/lending_fUST_20260605
["ID","MTS","AMOUNT","RATE_DAILY","PERIOD"]
[424205052,1780662646000,-2579.07686451,0.00015671,2]
[424205066,1780663390000,971.58,0.00023652,120]
[424205133,1780663832000,-770.54058531,0.00013245,2]
[424205135,1780663832000,-970.89203179,0.00013245,2]
[424205137,1780663832000,-3258.5673829,0.00013245,2]
[424205141,1780663832000,-191.5326171,0.00013615,2]
[424205139,1780663832000,-156.0,0.00013379,2]
[424205223,1780663838000,-1919.22683145,0.00013113,2]
[424205224,1780663838000,-1126.98964909,0.00013113,2]
[424205225,1780663838000,-1953.78351946,0.00013113,2]
[424205226,1780663838000,-7.6799966,0.00013615,2]
[424205227,1780663838000,-384.90850547,0.00014346,2]
[424205229,1780663838000,-186.48488064,0.00015596,5]
[424205230,1780663838000,-151.0,0.00015872,2]
[424205228,1780663838000,-155.64443662,0.00015101,2]
[424205231,1780663838000,-151.0,0.00015872,2]
[424205232,1780663838000,-151.0,0.00015872,2]
[424205234,1780663838000,-151.0,0.00015872,2]
[424205235,1780663838000,-1200.0,0.00016195,2]
[424205233,1780663838000,-151.0,0.00015872,2]
[424205244,1780663838000,-1705.27342595,0.00016494,2]
[424205242,1780663838000,-242.84029021,0.00016494,2]
[424205240,1780663838000,-708.09359673,0.00016494,2]
[424205245,1780663838000,-824.53978209,0.00016494,2]
[424205243,1780663838000,-1705.27342595,0.00016494,2]
[424205238,1780663838000,-163.45728598,0.00016488,2]
[424205237,1780663838000,-151.0,0.00016196,2]
[424205236,1780663838000,-151.0,0.00016196,2]
[424205239,1780663838000,-997.17982922,0.00016494,2]
[424205251,1780663840000,-1081.51710325,0.00016494,2]
[424205250,1780663840000,-1705.27342595,0.00016494,2]
[424205249,1780663840000,-880.73364386,0.00016494,2]
[424205282,1780663843000,-243.3756315,0.00016494,2]
[424205272,1780663843000,-1705.27342595,0.00016494,2]
[424205271,1780663843000,-623.7563227,0.00016494,2]
[424205275,1780663843000,-1705.27342595,0.00016494,2]
[424205274,1780663843000,-1705.27342595,0.00016494,2]
[424205273,1780663843000,-1705.27342595,0.00016494,2]
[424205276,1780663843000,-1705.27342595,0.00016494,2]
[424205277,1780663843000,-1705.27342595,0.00016494,2]
[424205278,1780663843000,-1579.60312163,0.00016494,2]
[424205280,1780663843000,-1705.27342595,0.00016494,2]
[424205279,1780663843000,-125.67030432,0.00016494,2]
[424205281,1780663843000,-1705.27342595,0.00016494,2]
[424205314,1780663846000,-500.0,0.00016494,2]
[424205316,1780663846000,-500.0,0.00016494,2]
[424205315,1780663846000,-500.0,0.00016494,2]
[424205319,1780663846000,-500.0,0.00016494,2]
[424205318,1780663846000,-500.0,0.00016494,2]
[424205317,1780663846000,-322.0010541,0.00016494,2]
[424205321,1780663846000,-500.0,0.00016494,2]
[424205323,1780663846000,-500.0,0.00016494,2]
[424205307,1780663846000,-500.0,0.00016494,2]
[424205322,1780663846000,-500.0,0.00016494,2]
[424205324,1780663846000,-500.0,0.00016494,2]
[424205326,1780663846000,-500.0,0.00016494,2]
[424205338,1780663846000,-500.0,0.00016494,2]
[424205309,1780663846000,-500.0,0.00016494,2]
[424205299,1780663846000,-500.0,0.00016494,2]
[424205305,1780663846000,-52.75687806,0.00016494,2]
[424205306,1780663846000,-201.62774526,0.00016494,2]
[424205302,1780663846000,-500.0,0.00016494,2]
[424205303,1780663846000,-500.0,0.00016494,2]
[424205304,1780663846000,-447.24312194,0.00016494,2]
[424205313,1780663846000,-500.0,0.00016494,2]
[424205300,1780663846000,-500.0,0.00016494,2]
[424205312,1780663846000,-500.0,0.00016494,2]
[424205311,1780663846000,-500.0,0.00016494,2]
[424205310,1780663846000,-500.0,0.00016494,2]
[424205301,1780663846000,-500.0,0.00016494,2]
[424205298,1780663846000,-500.0,0.00016494,2]
[424205297,1780663846000,-256.6243685,0.00016494,2]
[424205308,1780663846000,-500.0,0.00016494,2]
[424205328,1780663846000,-500.0,0.00016494,2]
[424205320,1780663846000,-500.0,0.00016494,2]
[424205329,1780663846000,-500.0,0.00016494,2]
[424205350,1780663846000,-1790.53709725,0.00016494,2]
[424205349,1780663846000,-1790.53709725,0.00016494,2]
[424205348,1780663846000,-1790.53709725,0.00016494,2]
[424205347,1780663846000,-1790.53709725,0.00016494,2]
[424205353,1780663846000,-1790.53709725,0.00016494,2]
[424205352,1780663846000,-1790.53709725,0.00016494,2]
[424205346,1780663846000,-1790.53709725,0.00016494,2]
[424205358,1780663846000,-2309.79285546,0.00016494,2]
[424205357,1780663846000,-2309.79285546,0.00016494,2]
[424205354,1780663846000,-500.0,0.00016494,2]
[424205356,1780663846000,-407.97790461,0.00016494,2]
[424205360,1780663846000,-10388.43122441,0.00016495,2]
[424205359,1780663846000,-9230.72979457,0.00016495,2]
[424205339,1780663846000,-500.0,0.00016494,2]
[424205355,1780663846000,-500.0,0.00016494,2]
[424205344,1780663846000,-579.77904613,0.00016494,2]
[424205325,1780663846000,-500.0,0.00016494,2]
[424205345,1780663846000,-1790.53709725,0.00016494,2]
[424205351,1780663846000,-1790.53709725,0.00016494,2]
[424205335,1780663846000,-500.0,0.00016494,2]
[424205332,1780663846000,-500.0,0.00016494,2]
[424205330,1780663846000,-500.0,0.00016494,2]
[424205336,1780663846000,-1705.27342595,0.00016494,2]
[424205334,1780663846000,-500.0,0.00016494,2]
[424205327,1780663846000,-500.0,0.00016494,2]
[424205337,1780663846000,-500.0,0.00016494,2]
[424205331,1780663846000,-500.0,0.00016494,2]
[424205343,1780663846000,-281.01924155,0.00016494,2]
[424205341,1780663846000,-500.0,0.00016494,2]
[424205340,1780663846000,-500.0,0.00016494,2]
[424205342,1780663846000,-218.98075845,0.00016494,2]
[424205333,1780663846000,-500.0,0.00016494,2]
[424205378,1780664511000,-4707.2390746,0.00015135,2]
[424205403,1780665037000,-3307.62928962,0.00012741,2]
[424205405,1780665037000,-824.7273025,0.00012741,2]
[424205404,1780665037000,-269.08724583,0.00012741,2]
[424205440,1780665051000,-395.88409098,0.00014886,2]
[424205438,1780665051000,-3304.76238995,0.00013,2]
[424205436,1780665051000,-598.55616205,0.00012741,2]
[424205437,1780665051000,-756.47849905,0.00013,2]
[424205448,1780665052000,-3012.55299643,0.00014999,2]
[424205441,1780665052000,-1960.45067118,0.000149,2]
[424205444,1780665052000,-590.69506368,0.000149,2]
[424205446,1780665052000,-782.634301,0.00014999,2]
[424205450,1780665052000,-500.0,0.00014999,2]
[424205459,1780665052000,-261.30128292,0.00014999,2]
[424205455,1780665052000,-500.0,0.00014999,2]
[424205457,1780665052000,-238.69871708,0.00014999,2]
[424205463,1780665052000,-500.0,0.00014999,2]
[424205461,1780665052000,-500.0,0.00014999,2]
[424205453,1780665052000,-508.14369438,0.00014999,2]
[424205464,1780665053000,-500.0,0.00014999,2]
[424205467,1780665053000,-500.0,0.00014999,2]
[424205469,1780665053000,-500.0,0.00014999,2]
[424205474,1780665053000,-500.0,0.00014999,2]
[424205477,1780665053000,-500.0,0.00014999,2]
[424205478,1780665053000,-500.0,0.00014999,2]
[424205479,1780665053000,-500.0,0.00014999,2]
[424205480,1780665053000,-263.66561271,0.00014999,2]
[424205475,1780665053000,-500.0,0.00014999,2]
[424205485,1780665054000,-500.0,0.00014999,2]
[424205482,1780665054000,-500.0,0.00014999,2]
[424205481,1780665054000,-601.12470617,0.00014999,2]
[424205484,1780665054000,-500.0,0.00014999,2]
[424205483,1780665054000,-500.0,0.00014999,2]
[424205486,1780665054000,-500.0,0.00014999,2]
[424205489,1780665054000,-260.66541183,0.00014999,2]
[424205488,1780665054000,-167.10860154,0.00014999,2]
[424205493,1780665054000,-239.33458817,0.00014999,2]
[424205494,1780665054000,-573.73635157,0.00014999,2]
[424205495,1780665054000,-4251.85295304,0.00015,2]
[424205499,1780665054000,-871.80861895,0.00015,2]
[424205498,1780665054000,-1826.03086402,0.00015,2]
[424205487,1780665054000,-332.89139846,0.00014999,2]
[424205506,1780665055000,-4750.14617314,0.00015,2]
[424205505,1780665055000,-12497.93072132,0.00015,2]
[424205503,1780665055000,-1298.55723155,0.00015,2]
[424205510,1780665056000,-359.50100004,0.00015,2]
[424205509,1780665056000,-1562.73952827,0.00015,2]
[424205508,1780665056000,-456.0,0.00015,2]
[424209477,1780666239000,-433.45811007,0.00013254,2]
[424209472,1780666239000,-450.5909717,0.00013254,2]
[424209479,1780666240000,-1204.23062129,0.00013254,2]
[424209543,1780666255000,-2911.72029694,0.00013254,2]
[424209544,1780666255000,-326.5701808,0.00013388,2]
[424209545,1780666255000,-199.08721727,0.00013388,2]
[424209546,1780666255000,-1000.0,0.00013699,2]
[424209548,1780666255000,-200.0,0.000139,2]
[424209549,1780666255000,-200.21,0.000139,7]
[424209550,1780666255000,-258.66650991,0.00014592,2]
[424209547,1780666255000,-3906.9864607,0.00013885,2]
[424209552,1780666256000,-2232.25251802,0.00014606,2]
[424209553,1780666256000,-151.0,0.0001464,2]
[424209557,1780666256000,-2417.79152727,0.00014706,2]
[424209555,1780666256000,-284.42451654,0.00014706,2]
[424209556,1780666256000,-5287.7603404,0.00014706,2]
[424209554,1780666256000,-11142.7828711,0.00014706,2]
[424209558,1780666259000,-4704.53197983,0.00014706,2]
[424209559,1780666259000,-2514.0618651,0.00014706,2]
[424209560,1780666259000,-359.6210872,0.00014706,2]
[424209561,1780666259000,-151.0,0.00014939,2]
[424209562,1780666259000,-151.0,0.00014939,2]
[424209563,1780666259000,-151.0,0.00014939,2]
[424209564,1780666259000,-151.0,0.00014939,2]
[424209566,1780666259000,-151.0,0.00014939,2]
[424209567,1780666259000,-151.0,0.00014939,2]
[424209568,1780666259000,-151.0,0.00014939,2]
[424209569,1780666259000,-151.0,0.00014939,2]
[424209570,1780666259000,-151.0,0.00014939,2]
[424209565,1780666259000,-151.0,0.00014939,2]
[424209573,1780666260000,-150.75,0.00014999,2]
[424209574,1780666260000,-151.0,0.00014999,2]
[424209575,1780666260000,-151.0,0.00014999,2]
[424209571,1780666260000,-500.0,0.00014999,2]
[424209576,1780666260000,-506.89611728,0.00014999,2]
[424209572,1780666260000,-154.84561344,0.00014999,2]
[424209578,1780666260000,-500.0,0.00014999,2]
[424209577,1780666260000,-500.0,0.00014999,2]
[424209584,1780666260000,-500.0,0.00014999,2]
[424209581,1780666260000,-500.0,0.00014999,2]
[424209580,1780666260000,-496.32349867,0.00014999,2]
[424209579,1780666260000,-500.0,0.00014999,2]
[424209583,1780666260000,-500.0,0.00014999,2]
[424209604,1780666261000,-269.20261452,0.00014999,2]
[424209587,1780666261000,-500.0,0.00014999,2]
[424209588,1780666261000,-500.0,0.00014999,2]
[424209589,1780666261000,-391.80427231,0.00014999,2]
[424209591,1780666261000,-500.0,0.00014999,2]
[424209594,1780666261000,-500.0,0.00014999,2]
[424209586,1780666261000,-500.0,0.00014999,2]
[424209597,1780666261000,-500.0,0.00014999,2]
[424209595,1780666261000,-500.0,0.00014999,2]
[424209602,1780666261000,-500.0,0.00014999,2]
[424209606,1780666261000,-500.0,0.00014999,2]
[424209599,1780666261000,-500.0,0.00014999,2]
[424209600,1780666261000,-500.0,0.00014999,2]
[424209624,1780666262000,-399.63234987,0.00014999,2]
[424209622,1780666262000,-500.0,0.00014999,2]
[424209620,1780666262000,-500.0,0.00014999,2]
[424209616,1780666262000,-500.0,0.00014999,2]
[424209614,1780666262000,-500.0,0.00014999,2]
[424209613,1780666262000,-500.0,0.00014999,2]
[424209612,1780666262000,-500.0,0.00014999,2]
[424209611,1780666262000,-500.0,0.00014999,2]
[424209609,1780666262000,-500.0,0.00014999,2]
[424209618,1780666262000,-500.0,0.00014999,2]
[424209628,1780666263000,-585.46695717,0.00014999,2]
[424209626,1780666263000,-500.0,0.00014999,2]
[424209632,1780666263000,-302.16498139,0.00014999,2]
[424209631,1780666263000,-616.92866392,0.00014999,2]
[424209639,1780666264000,-1110.5205129,0.00015,2]
[424209637,1780666264000,-1107.9990059,0.00015,2]
[424209635,1780666264000,-1232.83171686,0.00015,2]
[424209633,1780666264000,-20491.07744348,0.00015,2]
[424209643,1780666265000,-2074.90367633,0.00014849,2]
[424209648,1780666266000,-1022.27305504,0.00015,2]
[424209646,1780666266000,-2925.09632367,0.00014849,2]
[424210009,1780666690000,155.0,0.0002,120]
[424210065,1780667440000,-153.0,0.00013592,7]
[424210068,1780667440000,-162.90567643,0.00013601,2]
[424210073,1780667440000,-3214.569383,0.00013601,2]
[424210070,1780667440000,-369.006,0.00013601,2]
[424210090,1780667441000,-2315.92534136,0.00013877,2]
[424210088,1780667441000,-1322.9122864,0.00013738,2]
[424210087,1780667441000,-912.43247113,0.00013601,2]
[424210085,1780667441000,-341.08646944,0.00013601,2]
[424210170,1780667455000,-220.49465864,0.00013877,2]
[424210176,1780667455000,-152.0,0.00013899,7]
[424210178,1780667455000,-500.0,0.00014,2]
[424210179,1780667455000,-596.0,0.00014016,2]
[424210173,1780667455000,-152.0,0.00013899,7]
[424210185,1780667455000,-3091.8852948,0.00014946,2]
[424210182,1780667455000,-181.06655694,0.00014592,2]
[424210188,1780667455000,-3226.297781,0.00014946,2]
[424210186,1780667455000,-2417.7915273,0.00014946,2]
[424210194,1780667455000,-17588.3156754,0.00015,2]
[424210187,1780667455000,-3041.0574191,0.00014946,2]
[424210192,1780667455000,-154.64491915,0.00014999,2]
[424210190,1780667455000,-488.84803887,0.00014999,2]
[424210210,1780667456000,-15.6702949,0.00015533,2]
[424210208,1780667456000,-500.0,0.00015533,2]
[424210205,1780667456000,-153.04780917,0.00015475,2]
[424210204,1780667456000,-151.0,0.00015475,2]
[424210202,1780667456000,-165.31965672,0.00015475,2]
[424210200,1780667456000,-315.027709,0.00015455,2]
[424210198,1780667456000,-500.0,0.00015288,2]
[424210196,1780667456000,-29572.41550009,0.00015,2]
[424210256,1780667483000,-156.0,0.00016496,2]
[424210255,1780667483000,-157.91141378,0.00016486,2]
[424210253,1780667483000,-151.0,0.00016338,2]
[424210254,1780667483000,-200.0,0.00016438,2]
[424210252,1780667483000,-151.0,0.00016337,2]
[424210258,1780667483000,-600.0,0.00017014,2]
[424210250,1780667483000,-315.027709,0.00016106,2]
[424210249,1780667483000,-190.10773987,0.00016081,2]
[424210247,1780667483000,-135.3297051,0.00015533,2]
[424210246,1780667483000,-4128.28761962,0.00015378,2]
[424210245,1780667483000,-871.71238038,0.00015378,2]
[424210251,1780667483000,-151.0,0.00016337,2]
[424210248,1780667483000,-152.0,0.00015653,2]
[424210257,1780667483000,-315.027709,0.00016756,2]
[424210260,1780667483000,-300.0,0.00017134,2]
[424210259,1780667483000,-300.0,0.00017134,2]
[424210270,1780667483000,-300.0,0.00017134,2]
[424210268,1780667483000,-300.0,0.00017134,2]
[424210267,1780667483000,-300.0,0.00017134,2]
[424210269,1780667483000,-300.0,0.00017134,2]
[424210271,1780667483000,-300.0,0.00017134,2]
[424210265,1780667483000,-300.0,0.00017134,2]
[424210264,1780667483000,-300.0,0.00017134,2]
[424210263,1780667483000,-300.0,0.00017134,2]
[424210262,1780667483000,-300.0,0.00017134,2]
[424210261,1780667483000,-300.0,0.00017134,2]
[424210266,1780667483000,-300.0,0.00017134,2]
[424210272,1780667484000,-300.0,0.00017134,2]
[424210273,1780667484000,-300.0,0.00017134,2]
[424210274,1780667484000,-245.34774143,0.00017284,2]
[424210275,1780667484000,-315.82282756,0.00017284,2]
[424210277,1780667484000,-163.6702208,0.00017284,2]
[424210276,1780667484000,-159.18515078,0.00017284,2]
[424210278,1780667484000,-500.0,0.00017284,2]
[424210279,1780667484000,-315.027709,0.00017407,2]
[424210280,1780667484000,-575.78490641,0.00017541,2]
[424210281,1780667484000,-151.0,0.00017633,2]
[424210283,1780667484000,-663.16914861,0.00017808,2]
[424210284,1780667484000,-1173.83085139,0.00017808,2]
[424210286,1780667484000,-257.83789406,0.00017816,2]
[424210285,1780667484000,-3631.0,0.00017808,2]
[424210288,1780667484000,-473.73424134,0.00017816,2]
[424210287,1780667484000,-490.69548287,0.00017816,2]
[424210289,1780667484000,-318.37030156,0.00017816,2]
[424210290,1780667484000,-327.3404416,0.00017816,2]
[424210291,1780667484000,-150.138,0.00017861,2]
[424210292,1780667484000,-150.0,0.00017861,2]
[424210293,1780667484000,-1057.27024413,0.00017892,2]
[424210282,1780667484000,-152.0,0.00017747,30]
[424210294,1780667485000,-1953.22095325,0.000179,2]
[424210295,1780667485000,-591.99490287,0.00017961,7]
[424210296,1780667485000,-6173.0346375,0.00018,2]
[424210297,1780667485000,210.42419963,0.00023648,30]
[424210839,1780668080000,432.65,0.000232,120]
[424210864,1780668333000,10000.0,0.00023288,120]
[424210865,1780668336000,218.0,0.00023151,120]
[424210867,1780668350000,-240.90625341,0.00013294,7]
[424210866,1780668350000,-5000.0,0.00012899,2]
[424210868,1780668350000,-215.88,0.00013824,2]
[424210869,1780668350000,-215.87,0.00013826,2]
[424210870,1780668350000,-178.83219314,0.00014029,2]
[424210871,1780668350000,-361.35938014,0.00014358,7]
[424210872,1780668350000,-1200.0,0.00014995,2]
[424210876,1780668350000,-166.66,0.00015585,2]
[424210874,1780668350000,-300.0,0.00014996,2]
[424210875,1780668350000,-238.86026423,0.00015571,2]
[424210877,1780668350000,-1000.0,0.00016284,2]
[424210878,1780668350000,-1639.288987,0.00016478,2]
[424210879,1780668350000,-167.68688225,0.00016484,2]
[424210880,1780668350000,-197.52092331,0.00016484,2]
[424210881,1780668350000,-166.66,0.00016645,2]
[424210873,1780668350000,-300.0,0.00014996,2]
[424210891,1780668351000,-273.352154,0.00017501,2]
[424210890,1780668351000,-152.0,0.00017305,7]
[424210889,1780668351000,-152.0,0.00017305,7]
[424210888,1780668351000,-395.04184662,0.00017282,2]
[424210883,1780668351000,-172.14392917,0.00017134,2]
[424210884,1780668351000,-176.57551861,0.00017134,2]
[424210885,1780668351000,-4827.2881708,0.00017241,2]
[424210882,1780668351000,-214.62771857,0.00016669,2]
[424210892,1780668351000,-161.0,0.000176,14]
[424210886,1780668351000,-153.9359046,0.00017241,2]
[424210893,1780668351000,-271.18222141,0.0001764,2]
[424210887,1780668351000,-335.3737645,0.00017282,2]
[424210896,1780668351000,-429.94847561,0.00017768,2]
[424210894,1780668351000,-166.66,0.00017704,2]
[424210903,1780668351000,-163.6702208,0.00017814,2]
[424210902,1780668351000,-159.18515078,0.00017814,2]
[424210900,1780668351000,-245.34774143,0.00017814,2]
[424210901,1780668351000,-503.06064676,0.00017814,2]
[424210904,1780668351000,-592.56276993,0.00017814,2]
[424210899,1780668351000,-171.89192937,0.00017814,2]
[424210898,1780668351000,-170.15609684,0.0001777,5]
[424210897,1780668351000,-486.05344706,0.0001777,5]
[424210895,1780668351000,-638.06827648,0.00017763,2]
[424210905,1780668351000,-152.0,0.00017841,30]
[424210912,1780668352000,-179.22984737,0.00017989,2]
[424210908,1780668352000,-500.0,0.00017964,2]
[424210907,1780668352000,-152.0,0.0001792,30]
[424210909,1780668352000,-528.07228931,0.00017964,2]
[424210910,1780668352000,-152.0,0.00017982,30]
[424210911,1780668352000,-162.380719,0.00017989,2]
[424210913,1780668352000,-500.0,0.00017999,2]
[424210914,1780668352000,-151.0,0.00018,2]
[424210906,1780668352000,-2887.13643193,0.00017913,2]
[424210915,1780668352000,-151.0,0.00018,2]
[424210917,1780668352000,-160.03547726,0.00018,2]
[424210918,1780668352000,-16447.46160521,0.00018,2]
[424210919,1780668352000,-500.0,0.00018013,2]
[424210921,1780668352000,-167.93,0.00018013,2]
[424210920,1780668352000,-167.93,0.00018013,2]
[424210923,1780668352000,-167.93,0.00018013,2]
[424210922,1780668352000,-167.93,0.00018013,2]
[424210916,1780668352000,-151.0,0.00018,2]
[424210925,1780668353000,-61761.1213201,0.00018069,2]
[424210924,1780668353000,-167.93,0.00018013,2]
[424210938,1780668413000,-152.0,0.00017308,7]
[424210937,1780668413000,-360.08551557,0.00017276,2]
[424210936,1780668413000,-5000.0,0.00017135,2]
[424210932,1780668413000,-361.35938014,0.00014358,7]
[424210934,1780668413000,-1041.66666667,0.00016313,2]
[424210933,1780668413000,-152.0,0.00016291,2]
[424210931,1780668413000,-240.9062534,0.0001356,7]
[424210940,1780668413000,-163.56516096,0.00017808,2]
[424210935,1780668413000,-180.04275779,0.00016478,2]
[424210939,1780668413000,-152.0,0.00017308,7]
[424210945,1780668413000,-500.0,0.00017968,2]
[424210941,1780668413000,-540.12827336,0.00017808,2]
[424210943,1780668413000,-500.0,0.00017968,2]
[424210944,1780668413000,-389.72077214,0.00017968,2]
[424210946,1780668413000,-500.0,0.00017968,2]
[424210947,1780668413000,-500.0,0.00017968,2]
[424210949,1780668413000,-500.0,0.00017968,2]
[424210948,1780668413000,-500.0,0.00017968,2]
[424210950,1780668413000,-500.0,0.00017968,2]
[424210951,1780668413000,-500.0,0.00017968,2]
[424210952,1780668413000,-500.0,0.00017968,2]
[424210942,1780668413000,-500.0,0.00017968,2]
[424210954,1780668414000,-329.99379331,0.00017968,2]
[424210953,1780668414000,-500.0,0.00017968,2]
[424210955,1780668414000,-500.0,0.00017968,2]
[424210956,1780668414000,-500.0,0.00017968,2]
[424210959,1780668414000,-377.1804931,0.00017968,2]
[424210958,1780668414000,-391.06668456,0.00017968,2]
[424210957,1780668414000,-500.0,0.00017968,2]
[424210964,1780668428000,-152.0,0.00016247,2]
[424210963,1780668428000,-5000.0,0.00016128,2]
[424210966,1780668428000,-743.0,0.00017525,2]
[424210965,1780668428000,-152.0,0.00017314,7]
[424210967,1780668428000,-446.888,0.00017525,2]
[424210971,1780668428000,-122.8195069,0.00017968,2]
[424210970,1780668428000,-5051.67411764,0.00017968,2]
[424210969,1780668428000,-159.18515078,0.00017808,2]
[424210972,1780668428000,-500.0,0.00017968,2]
[424210973,1780668428000,-500.0,0.00017968,2]
[424210974,1780668428000,-500.0,0.00017968,2]
[424210975,1780668428000,-500.0,0.00017968,2]
[424210968,1780668428000,-202.593,0.00017525,2]
[424210977,1780668428000,-500.0,0.00017968,2]
[424210978,1780668428000,-500.0,0.00017968,2]
[424210981,1780668428000,-500.0,0.00017968,2]
[424210979,1780668428000,-500.0,0.00017968,2]
[424210980,1780668428000,-500.0,0.00017968,2]
[424210987,1780668428000,-500.0,0.00018068,2]
[424210982,1780668428000,-500.0,0.00017968,2]
[424210983,1780668428000,-88028.19992168,0.00017969,2]
[424210984,1780668428000,-23289.71515136,0.00017969,2]
[424210985,1780668428000,-500.0,0.00018068,2]
[424210986,1780668428000,-169.98820315,0.00018068,2]
[424210988,1780668428000,-127908.81420858,0.00018069,2]
[424210976,1780668428000,-500.0,0.00017968,2]
[424210989,1780668431000,-240.16692372,0.00017708,2]
[424210990,1780668431000,-123300.55588728,0.00018069,2]
[424210993,1780668442000,-103654.5544742,0.00018069,2]
[424210991,1780668442000,-163.6702208,0.00017808,2]
[424210992,1780668442000,-5000.0,0.00017888,2]
[424210997,1780668453000,-23587.01853358,0.00018069,2]
[424210995,1780668453000,-160.11128248,0.00017708,2]
[424210996,1780668453000,-520.56732994,0.00017998,2]
[424211027,1780668566000,5000.0,8.4e-05,2]
[424211320,1780668647000,-62.48740257,0.00015896,2]
[424211308,1780668647000,-215.88,0.00013811,2]
[424211313,1780668647000,-178.83219314,0.00014811,2]
[424211316,1780668647000,-104.17259743,0.00015896,2]
[424211323,1780668647000,-175.10040757,0.00016478,2]
[424211327,1780668647000,-166.66,0.00016977,2]
[424211311,1780668647000,-215.87,0.00013813,2]
[424211328,1780668647000,-179.897804,0.00017041,2]
[424211333,1780668647000,-152.0,0.00017314,7]
[424211336,1780668647000,-152.0,0.00017314,7]
[424211338,1780668647000,-161.0,0.000176,7]
[424211343,1780668647000,-171.89192937,0.00017808,2]
[424211345,1780668647000,-190.82602111,0.00017808,2]
[424211342,1780668647000,-160.11128249,0.00017708,2]
[424211331,1780668647000,-350.20081514,0.00017276,2]
[424211369,1780668648000,-3913.2348623,0.00018003,2]
[424211362,1780668648000,-2165.352324,0.00017968,2]
[424211366,1780668648000,-500.0,0.00017999,2]
[424211364,1780668648000,-357375.24158751,0.00017969,2]
[424211353,1780668648000,-1200.0,0.00017887,2]
[424211355,1780668648000,-5000.0,0.00017888,2]
[424211373,1780668648000,-166.66,0.00018058,2]
[424211350,1780668648000,-525.30122272,0.00017808,2]
[424211359,1780668648000,-300.0,0.00017967,2]
[424211372,1780668648000,-309.8590725,0.00018029,2]
[424211358,1780668648000,-300.0,0.00017967,2]
[424211382,1780668648000,-151.0,0.00018069,2]
[424211418,1780668648000,-382.21234465,0.00018069,2]
[424211412,1780668648000,-45525.00000001,0.00018069,2]
[424211376,1780668648000,-1351.49619508,0.00018068,2]
[424211416,1780668648000,-1019.18607907,0.00018069,2]
[424211407,1780668648000,-305.09,0.00018069,2]
[424211411,1780668648000,-1348.02949894,0.00018069,2]
[424211395,1780668648000,-846962.13809708,0.00018069,2]
[424211389,1780668648000,-151.0,0.00018069,2]
[424211385,1780668648000,-151.0,0.00018069,2]
[424211379,1780668648000,-1351.49619508,0.00018068,2]
[424211392,1780668648000,-160.03547726,0.00018069,2]
[424211471,1780668650000,-2353.70145846,0.00018069,2]
[424211472,1780668650000,-361892.57809805,0.00018069,2]
[424211475,1780668650000,-500.0,0.00018098,2]
[424211478,1780668650000,-528.07228931,0.00018098,2]
[424211482,1780668650000,-150.0,0.00018108,2]
[424211480,1780668650000,-500.0,0.00018107,2]
[424211491,1780668650000,-1837.0,0.00018108,2]
[424211494,1780668650000,-461.48,0.00018108,2]
[424211497,1780668650000,-2224.822,0.00018108,2]
[424211499,1780668650000,-327.34044159,0.00018162,2]
[424211502,1780668650000,-700.40163029,0.00018162,2]
[424211487,1780668650000,-150.0,0.00018108,2]
[424211534,1780668651000,-600.0,0.00018198,2]
[424211526,1780668651000,-169.64702593,0.00018173,2]
[424211524,1780668651000,-188.79755756,0.00018171,2]
[424211519,1780668651000,-290.14670055,0.00018171,2]
[424211518,1780668651000,-160.54247104,0.00018171,2]
[424211514,1780668651000,-273.2752789,0.00018171,2]
[424211512,1780668651000,-178.11754327,0.00018171,2]